Cogmind - Beta 11.1 *** ADVENTURER MODE // 2022.05.13 @ 18:00:07 Player: Fgdfgfthgr Result: Destroyed by AD-0RF with AD-0RF's Magmablaster Performance ------------- Evolutions (1) 500 Regions Visited (6) 1200 Robots Destroyed (87) 435 Value Destroyed (1724) 1724 Prototype IDs (8) 160 Alien Tech Used (0) 0 Bonus (39) 39 TOTAL SCORE: 4058 Bonus ------- Follower Combat Kills 39 Cogmind --------- Core Integrity 0/400 Matter 81/300 Energy 308/310 System Corruption 1% Temperature Hot (281) Movement Core (1800) Ox35 Location -8/Mines Parts ------- > --- POWER (1) -------- Reinforced Fission Core > --- PROPULSION (3) --- (None) > --- UTILITY (3) ------ Heat Sink Huge Storage Unit > --- WEAPON (2) ------- Enhanced Autogun Enhanced Autogun > --- INVENTORY (25) --- Heavy Ion Engine Heavy Ion Engine Light Nuclear Core Light Nuclear Core Light Nuclear Core Advanced Myomer Leg Experimental Heat Sink Medium Storage Unit Advanced Weapon Cycler AS-neutralizer No. 17b Improved Medium Laser Advanced Beam Cannon Assault Rifle Heavy Assault Rifle Autogun 8R-AWN's Boregun Mini Grenade Launcher Makeshift Axe Peak State ------------ > --- POWER ------------ Heavy Ion Engine > --- PROPULSION ------- Armored Treads Armored Treads Armored Treads > --- UTILITY ---------- Huge Storage Unit Improved Targeting Computer Light Armor Plating > --- WEAPON ----------- Enhanced Autogun Enhanced Autogun > --- INVENTORY -------- Heavy Ion Engine Light Fission Core Light Fission Core Light Fission Core Light Treads Light Treads Armored Treads Heat Sink Heat Sink Cooling System Medium Storage Unit Light Armor Plating Light Armor Plating Heavy EM Pulse Gun Improved Medium Laser Advanced Beam Cannon Advanced Beam Cannon Advanced Beam Cannon Assault Rifle Heavy Assault Rifle Autogun Enhanced Autogun Enhanced Autogun Mini Grenade Launcher Makeshift Axe [Rating: 30] Favorites ----------- Power Ion Engine Engine Ion Engine Power Core Reinforced Fission Core Propulsion Armored Treads Treads Armored Treads Leg Aluminum Leg Utility Light Armor Plating Device Heat Sink Storage Huge Storage Unit Processor Improved Targeting Computer Hackware Authchip [R/Combat] Protection Light Armor Plating Weapon Enhanced Autogun Energy Gun Particle Gun Energy Cannon Beam Cannon Ballistic Gun Enhanced Autogun Launcher Grenade Launcher Build | -11 -10 -10 -9 -9 -9 -8 ------- Run | Scr Mat Min Mat Min Exi Min Slots Evolved 2 | . . . 2 . . . Power . | . . . . . . . Propulsion 1 | . . . 1 . . . Utility 1 | . . . 1 . . . Weapon . | . . . . . . . Parts Attached 52 | . 15 4 16 2 12 3 Power 4 | . . 1 2 . 1 . Engine 3 | . . 1 2 . . . Core 1 | . . . . . 1 . Reactor . | . . . . . . . Propulsion 14 | . 4 . 4 2 4 . Treads 13 | . 4 . 4 1 4 . Leg 1 | . . . . 1 . . Wheel . | . . . . . . . Hover . | . . . . . . . Flight . | . . . . . . . Utility 16 | . 5 . 6 . 4 1 Device 6 | . 1 . 2 . 2 1 Storage 3 | . 2 . 1 . . . Processor 1 | . . . 1 . . . Hackware 1 | . 1 . . . . . Protection 5 | . 1 . 2 . 2 . Artifact . | . . . . . . . Weapon 18 | . 6 3 4 . 3 2 Energy Gun 2 | . 1 . . . 1 . Energy Cannon 4 | . 1 . 1 . 2 . Ballistic Gun 9 | . 2 2 3 . . 2 Ballistic Cannon . | . . . . . . . Launcher 3 | . 2 1 . . . . Special Weapon . | . . . . . . . Impact Weapon . | . . . . . . . Slashing Weapon . | . . . . . . . Piercing Weapon . | . . . . . . . Special Melee Weapon . | . . . . . . . Unidentified Prototypes 2 | . . . 2 . . . Parts Lost 13 | . . . . . 12 1 Power . | . . . . . . . Propulsion 5 | . . . . . 5 . Utility 5 | . . . . . 4 1 Weapon 3 | . . . . . 3 . Highest Loss Streak 5 | . . . . . 5 1 To Critical Strikes 4 | . . . . . 4 . Average Slot Usage (%) 94 | . 98 100 99 100 73 67 Engine 10 | . 14 14 11 11 3 . Core 1 | . . . . . 7 11 Treads 27 | . 20 28 33 33 21 4 Leg 1 | . 7 . . . . . Device 2 | . 5 . 2 . 2 14 Storage 11 | . 14 14 11 11 11 11 Processor 6 | . . . 8 11 11 7 Protection 9 | . 7 14 11 11 3 . Energy Gun 1 | . 9 . . . 1 . Energy Cannon 2 | . 4 5 . . 3 15 Ballistic Gun 18 | . 14 22 21 22 8 3 Naked Turns . | . . . . . . . Heaviest Build 110 | 13 52 52 97 97 110 110 Greatest Support 60 | 20 40 40 60 60 60 20 Greatest Overweight (x) 5 | . 1 1 1 2 5 5 Average Overweight (x) 1 | . . 1 1 1 2 5 Largest Inventory Capacity 25 | . 20 20 25 25 25 25 Average Capacity 22 | . 17 20 24 25 25 25 Most Carried 25 | . 19 20 25 25 25 21 Average Carried 21 | . 13 19 24 24 23 20 Final Capacity 25 | 8 20 20 25 25 25 25 Final Carried 25 | 6 19 20 25 25 21 18 Class Distribution -------------------- 99% | Mutant Dominant Class ---------------- Mutant | -10/Materials Mutant | -10/Mines Mutant | -9/Materials Mutant | -9/Mines Mutant | -9/Exiles Mutant | -8/Mines Resources | -11 -10 -10 -9 -9 -9 -8 ----------- Run | Scr Mat Min Mat Min Exi Min Matter Collected 1951 | 171 229 86 936 119 410 . Remotely . | . . . . . . . Salvage Created 2826 | . 587 207 1552 97 203 180 Parts 196 | . 42 17 121 8 6 2 Haulers Intercepted 7 | . 2 . 5 . . . Recyclers Shooed 3 | . 2 . 1 . . . Parts Field Recycled . | . . . . . . . Retrieved Matter . | . . . . . . . Parts Self-Destructed . | . . . . . . . Prevented . | . . . . . . . Kills | -11 -10 -10 -9 -9 -9 -8 ------- Run | Scr Mat Min Mat Min Exi Min Combat Hostiles Destroyed 66 | . 13 8 31 4 7 3 Guns 53 | . 10 1 31 4 7 . Cannons 7 | . 1 4 . . . 2 AOE 5 | . 2 3 . . . . Classes Destroyed 12 | . 7 1 3 . 1 . Worker 5 | . 1 . 4 . . . Builder 3 | . 1 . 2 . . . Tunneler 3 | . . 2 1 . . . Hauler 7 | . 2 . 5 . . . Recycler 1 | . 1 . . . . . Operator 1 | . . . 1 . . . Watcher 7 | . 2 . 5 . . . Swarmer 28 | . 6 6 13 3 . . Grunt 19 | . 7 2 8 . . 2 Duelist 3 | . . . 1 1 . 1 Sentry 9 | . . . 9 . . . Assembled 6 | . . . . . 6 . Best Kill Streak 6 | . 4 3 4 4 6 3 Combat Bots Only 6 | . 4 3 4 4 6 3 Max Kills in Single Turn 3 | . 2 3 2 1 2 1 Gunslinging 1 | . 1 . 1 . 1 . Exploded 3 | . 2 3 . . . . Melee . | . . . . . . . Uniques/NPCs Destroyed 1 | . . . . . 1 . 8R-AWN (-9/Exiles) Combat | -11 -10 -10 -9 -9 -9 -8 -------- Run | Scr Mat Min Mat Min Exi Min Damage Taken 3043 | . 224 208 430 71 1745 365 Core 449 | . 8 39 44 6 241 111 Absorbed by Shields . | . . . . . . . Core Remaining (%) 90 | 100 . 81 . . . . Volleys Fired 257 | . 47 23 99 11 63 14 Largest 2 | . 2 2 2 2 2 2 Hottest 136 | . 85 80 50 50 70 136 Shots Fired 510 | . 88 45 199 23 127 28 Gun 465 | . 78 26 199 23 127 12 Cannon 42 | . 8 18 . . . 16 Launcher 3 | . 2 1 . . . . Special . | . . . . . . . Kinetic 425 | . 45 26 199 23 120 12 Thermal 75 | . 41 18 . . . 16 Explosive 3 | . 2 1 . . . . Electromagnetic 7 | . . . . . 7 . Robot Hit Streak 37 | . 11 11 26 18 37 33 Robot Miss Streak 2 | . 2 2 2 2 2 . Penetration Max . | . . . . . . . Secondary Targets 9 | . 1 . 4 1 3 . Max Gunslinging Chain 1 | . 1 . 1 1 1 . Shots Hit Robots 403 | . 64 34 150 16 113 26 Core Hits 151 | . 34 15 58 5 30 9 Critical Kills 2 | . 1 . . . . 1 Critical Parts Destroyed . | . . . . . . . Critical Strikes 7 | . 3 . . . 3 1 Burn 2 | . 2 . . . . . Meltdown 1 | . . . . . . 1 Destroy 3 | . 1 . . . 2 . Corrupt 1 | . . . . . 1 . Melee Attacks . | . . . . . . . Impact . | . . . . . . . Slashing . | . . . . . . . Piercing . | . . . . . . . Sneak Attacks . | . . . . . . . Combat Hostiles . | . . . . . . . Follow-up Attacks . | . . . . . . . Damage Inflicted 6620 | . 849 620 2689 266 1770 426 Guns 5680 | . 639 136 2664 266 1770 205 Cannons 644 | . 127 296 . . . 221 Explosions 271 | . 83 188 . . . . Melee . | . . . . . . . Ramming 25 | . . . 25 . . . Kinetic 5302 | . 266 136 2664 266 1765 205 Thermal 1074 | . 500 353 . . . 221 Explosive 214 | . 83 131 . . . . Electromagnetic 5 | . . . . . 5 . Impact . | . . . . . . . Slashing . | . . . . . . . Piercing . | . . . . . . . Highest Corruption 1 | . . . 1 1 1 1 Average Corruption 1 | . . . 1 1 1 1 Corruption Purged . | . . . . . . . Corruption Blocked . | . . . . . . . Effects 25 | . . . 10 6 8 1 Message Errors 9 | . . . 4 2 2 1 Matter Fused 4 | . . . 1 1 2 . Heat Flow Errors 3 | . . . 2 . 1 . Data Loss (minor) 4 | . . . 2 2 . . Data Loss (major) 1 | . . . . . 1 . Misfires 3 | . . . 1 1 1 . Alerts 1 | . . . . . 1 . Overload Shots . | . . . . . . . Overflow Damage . | . . . . . . . Projectiles . | . . . . . . . Explosions . | . . . . . . . Melee . | . . . . . . . Knockbacks . | . . . . . . . Impact . | . . . . . . . Kinetic . | . . . . . . . Secondary . | . . . . . . . Self-Inflicted Damage . | . . . . . . . Shots . | . . . . . . . Rammed 2 | . . . 2 . . . Targets Rammed 3 | . 1 . 2 . . . Kicked 1 | . 1 . . . . . Crushed . | . . . . . . . Highest Temperature 433 | . 139 382 220 41 229 433 Average Temperature 78 | . 33 150 38 18 97 234 Received Heat Transfer 926 | . 78 126 171 6 . 545 Effects 4 | . . 2 . . . 2 Shutdowns 3 | . . 1 . . . 2 Short Circuit 1 | . . 1 . . . . Siege Activations . | . . . . . . . Robots Corrupted . | . . . . . . . Combat Hostiles . | . . . . . . . Parts Fried . | . . . . . . . Impact Corruptions . | . . . . . . . Robots Melted 1 | . . . . . . 1 Combat Hostiles 1 | . . . . . . 1 Parts Melted 4 | . . . . . . 4 Heat Transferred 2454 | . 1369 679 . . . 406 Parts Sabotaged . | . . . . . . . Parts Stolen . | . . . . . . . Parts Stripped . | . . . . . . . Power Chain Reactions . | . . . . . . . Missiles Intercepted . | . . . . . . . Alert | -11 -10 -10 -9 -9 -9 -8 ------- Run | Scr Mat Min Mat Min Exi Min Peak Influence 383 | . 267 138 383 88 . 70 Initial 12 | . . 3 3 12 . . Average 79 | . 94 60 107 36 . 36 Maximum Alert Level 1 | . 1 . 1 . . . Low Security (%) 86 | . 84 100 74 100 . 100 Level 1 13 | . 15 . 25 . . . Level 2 . | . . . . . . . Level 3 . | . . . . . . . Level 4 . | . . . . . . . Level 5 . | . . . . . . . High Security . | . . . . . . . Max Security . | . . . . . . . Squads Dispatched 6 | . 2 . 4 . . . Investigation 5 | . 2 . 3 . . . Extermination . | . . . . . . . Reinforcement 1 | . . . 1 . . . Assault . | . . . . . . . Garrison . | . . . . . . . Intercept . | . . . . . . . Searches Triggered . | . . . . . . . Construction Impeded . | . . . . . . . Haulers Reinforced . | . . . . . . . Active Scanning Responses . | . . . . . . . Cargo Convoy Interrupts . | . . . . . . . Stealth | -11 -10 -10 -9 -9 -9 -8 --------- Run | Scr Mat Min Mat Min Exi Min Distress Signals 5 | . 1 . 4 . . . Communications Jammed . | . . . . . . . Distress Signals . | . . . . . . . Times Spotted 89 | . 21 8 39 6 8 7 Peak Tracking Total 9 | . 4 3 4 3 9 4 Tactical Retreats 6 | . 1 . 1 . 4 . Traps | -11 -10 -10 -9 -9 -9 -8 ------- Run | Scr Mat Min Mat Min Exi Min Traps Triggered . | . . . . . . . Indirectly . | . . . . . . . Trap Hack Attempts . | . . . . . . . Triggered . | . . . . . . . Disarmed 6 | . 6 . . . . . Reprogrammed . | . . . . . . . Reused . | . . . . . . . Traps Extracted . | . . . . . . . Installed . | . . . . . . . Triggered . | . . . . . . . Machines | -11 -10 -10 -9 -9 -9 -8 ---------- Run | Scr Mat Min Mat Min Exi Min Machines Disabled 3 | . . 1 . . 2 . Max in Single Turn 1 | . . 1 . . 1 . Machines Sabotaged . | . . . . . . . Garrisons Compromised . | . . . . . . . Overloaded Fab Kills . | . . . . . . . Hacking | -11 -10 -10 -9 -9 -9 -8 --------- Run | Scr Mat Min Mat Min Exi Min Machines Accessed 21 | . 8 . 12 . 1 . Terminals 15 | . 6 . 9 . . . Fabricators . | . . . . . . . Repair Stations . | . . . . . . . Recycling Units 4 | . 2 . 2 . . . Scanalyzers 1 | . . . 1 . . . Garrison Access . | . . . . . . . Total Hacks 57 | . 23 . 33 . 1 . Successful 43 | . 18 . 24 . 1 . Failed 13 | . 5 . 8 . . . Catastrophic . | . . . . . . . Database Lockouts 1 | . . . 1 . . . Manual 29 | . 15 . 14 . . . Terminals 46 | . 21 . 25 . . . Fabricators . | . . . . . . . Repair Stations . | . . . . . . . Recycling Units 4 | . 2 . 2 . . . Scanalyzers 6 | . . . 6 . . . Garrison Access . | . . . . . . . Terminal Hacks 25 | . 11 . 13 . 1 . Record 1 | . . . . . 1 . Robot Analysis 5 | . 3 . 2 . . . Prototype ID Bank 4 | . 2 . 2 . . . Branch Access Points 2 | . 1 . 1 . . . Recycling Unit Index 1 | . . . 1 . . . Unreport Threat 5 | . 2 . 3 . . . Locate Traps 3 | . 2 . 1 . . . Disarm Traps 1 | . 1 . . . . . Registered Components 1 | . . . 1 . . . Zone Layout 2 | . . . 2 . . . Fabricator Hacks . | . . . . . . . Repair Station Hacks . | . . . . . . . Recycling Unit Hacks . | . . . . . . . Scanalyzer 4 | . . . 4 . . . Insert Component 2 | . . . 2 . . . Analyze 2 | . . . 2 . . . Garrison Access Hacks . | . . . . . . . Unauthorized Hacks 14 | . 7 . 7 . . . Terminals 10 | . 5 . 5 . . . Assimilate 2 | . 1 . 1 . . . Botnet 6 | . 4 . 2 . . . Disrupt 1 | . . . 1 . . . Operators 1 | . . . 1 . . . Fabricators . | . . . . . . . Repair Stations . | . . . . . . . Recycling Units 4 | . 2 . 2 . . . Tunnel 4 | . 2 . 2 . . . Scanalyzers . | . . . . . . . Garrison Access . | . . . . . . . Data Cores Recovered . | . . . . . . . Used . | . . . . . . . Hacking Detections 15 | . 6 . 9 . . . Full Trace Events 1 | . . . 1 . . . Feedback Events 1 | . . . 1 . . . Corruption 1 | . . . 1 . . . Feedback Blocked . | . . . . . . . Robot Schematics Acquired . | . . . . . . . Robots Built . | . . . . . . . Authchips . | . . . . . . . Time . | . . . . . . . Total Robot Build Rating . | . . . . . . . Part Schematics Acquired 2 | . . . 2 . . . Parts Built . | . . . . . . . Authchips . | . . . . . . . Time . | . . . . . . . Total Part Build Rating . | . . . . . . . Parts Repaired . | . . . . . . . Time . | . . . . . . . Parts Recycled . | . . . . . . . Recycled Matter . | . . . . . . . Retrieved Matter . | . . . . . . . Retrieved Components . | . . . . . . . Parts Scanalyzed 2 | . . . 2 . . . Part Schematics Acquired 2 | . . . 2 . . . Parts Damaged . | . . . . . . . Bothacking | -11 -10 -10 -9 -9 -9 -8 ------------ Run | Scr Mat Min Mat Min Exi Min Used RIF Installer . | . . . . . . . Robots Hacked . | . . . . . . . Non-combat . | . . . . . . . Combat . | . . . . . . . Robot Hacks Applied . | . . . . . . . Relay Couplers Released . | . . . . . . . Fabnet Peak Effective % . | . . . . . . . Robots Rewired . | . . . . . . . Allies Hacked . | . . . . . . . Hacks Repelled . | . . . . . . . Allies | -11 -10 -10 -9 -9 -9 -8 -------- Run | Scr Mat Min Mat Min Exi Min Total Allies 6 | . . . 1 5 . . Largest Group 4 | . . . 1 4 3 . Highest-Rated Group 54 | . . . 10 54 54 . Highest-Rated Ally 31 | . . . 10 31 31 . Total Orders . | . . . . . . . Ally Attacks 13 | . . . . 13 . . Total Damage 104 | . . . . 104 . . Kills 3 | . . . . 3 . . Allies Corrupted . | . . . . . . . Allies Melted . | . . . . . . . Intel | -11 -10 -10 -9 -9 -9 -8 ------- Run | Scr Mat Min Mat Min Exi Min Robot Analysis Total 5 | . 3 . 2 . . . Derelict Logs Recovered 4 | . . 2 . 2 . . Drone Launches . | . . . . . . . Drone Recoveries . | . . . . . . . Exploration | -11 -10 -10 -9 -9 -9 -8 ------------- Run | Scr Mat Min Mat Min Exi Min Turns Passed 7632 | . 1313 1188 2365 1342 1355 69 Spaces Moved 2725 | 1 583 462 836 525 314 4 Core . | . . . . . . . Treads 2501 | . 360 462 836 525 314 4 Legs 224 | 1 223 . . . . . Wheels . | . . . . . . . Hover . | . . . . . . . Flight . | . . . . . . . Fastest Speed 120 | 120 120 240 240 250 243 570 Average Speed 251 | 120 194 240 249 250 379 570 Slowest Speed 570 | 120 240 240 250 330 570 570 Overloaded Moves . | . . . . . . . Propulsion Burnouts . | . . . . . . . Robots Hopped . | . . . . . . . Cave-ins Triggered . | . . . . . . . Exploration Rate (%) 62 | 1 95 99 82 96 53 9 Regions Visited 6 Branch Regions 4 Pre-discovered Areas 5 | . 2 . 2 . 1 . Known Exits Taken 2 | . 1 . 1 . . . Unknown Exits Taken 4 | 1 . 1 . 1 1 . Scrap Searched 3 | . . 1 . 2 . . Spaces Dug . | . . . . . . . Terrain Destroyed 20 | . 13 7 . . . . Melee . | . . . . . . . Projectile . | . . . . . . . AOE 20 | . 13 7 . . . . Terrain Rammed . | . . . . . . . Walls Destroyed . | . . . . . . . Machines Disabled . | . . . . . . . Actions | -11 -10 -10 -9 -9 -9 -8 --------- Run | Scr Mat Min Mat Min Exi Min Total 3167 | . 684 501 1003 543 406 30 Wait 36 | . 16 10 4 . . 6 Move 2719 | . 582 461 835 524 313 4 Hop . | . . . . . . . Pick Up 52 | . 15 2 21 2 12 . Fast Attach 9 | . 2 . 4 2 1 . Attach 18 | . 1 1 3 . 10 3 Detach 1 | . 1 . . . . . Swap 25 | . 12 3 9 . 1 . Drop 47 | . 7 1 26 4 6 3 Fire 257 | . 47 23 99 11 63 14 Melee . | . . . . . . . Ram . | . . . . . . . Kick 1 | . 1 . . . . . Crush 2 | . . . 2 . . . Escape Stasis . | . . . . . . . Rewire . | . . . . . . . Trap . | . . . . . . . Miscellaneous . | . . . . . . . Route ------- -11/Scrapyard -10/Materials (discovered 5 exits: *Mat x3 / *Min x2) -10/Mines (discovered 2 exits: *Mat x2) -9/Materials (discovered 4 exits: *Mat x2 / *Min x2) -9/Mines (discovered 4 exits: *Mat x2 / *Exi / [*Zio]) -9/Exiles -8/Mines History --------- Turn | Location | Event 1 | -11/Scrapyard | Discovered new exit (range 0) 1 | -11/Scrapyard | Entered Materials 156 | -10/Materials | Discovered new exit (range 10) 311 | -10/Materials | Build established: Mutant 445 | -10/Materials | Discovered new exit (range 8) 670 | -10/Materials | Discovered new exit (range 8) 787 | -10/Materials | Identified exit to Mines 845 | -10/Materials | Discovered new exit (range 15) 1314 | -10/Materials | Entered Mines 1360 | -10/Mines | Discovered new exit (range 6) 1665 | -10/Mines | Discovered new exit (range 12) 1950 | -10/Mines | Learned Materials stockpile data 2254 | -10/Mines | Learned 4 Materials zone layouts 2502 | -10/Mines | Entered Materials 2502 | -9/Materials | Evolved 2 slots: Propulsion x1, Utility x1 2503 | -9/Materials | Identified exit to Mines 2503 | -9/Materials | Identified exit to Materials 2741 | -9/Materials | Central database locked down 2841 | -9/Materials | Discovered exit to Materials (range 15) 3626 | -9/Materials | Discovered exit to Mines (range 5) 4867 | -9/Materials | Entered Mines 4867 | -9/Mines | Accompanied by 1 ally 4870 | -9/Mines | Assisted by bots powering up and referring to "LRC-V3" 5061 | -9/Mines | A Derelict revealed a hidden shortcut to a safe place 5180 | -9/Mines | A weapon hastily lodged in a ceiling crevice suddenly fell to the ground 5269 | -9/Mines | Learned 8 Materials zone layouts 5444 | -9/Mines | Discovered exit to Materials (range 9) 5539 | -9/Mines | Learned location of 1 exit from Materials 5641 | -9/Mines | Discovered exit to Materials (range 7) 5885 | -9/Mines | Deemed a non-threat by the Exiles lab entrance 5885 | -9/Mines | Discovered new exit (range 5) 6209 | -9/Mines | Entered Exiles 6209 | -9/Exiles | Accompanied by 3 allies 6239 | -9/Exiles | Led the pair of lost Derelicts to a safe place 6363 | -9/Exiles | Met 8R-AWN 6401 | -9/Exiles | Met EX-HEX 6494 | -9/Exiles | Attacked by the Exiles 6674 | -9/Exiles | Core integrity fell below 50% 6674 | -9/Exiles | Destroyed 8R-AWN 6682 | -9/Exiles | Lost 5 parts (3n1u1w) 6687 | -9/Exiles | Found Prototype Device 6691 | -9/Exiles | Found Prototype Ballistic Gun 6819 | -9/Exiles | Learned location of Zion (-7) 6866 | -9/Exiles | Lost 3 parts (2n1w) 7496 | -9/Exiles | Discovered new exit (range 14) 7564 | -9/Exiles | Entered Mines 7597 | -8/Mines | Core integrity fell below 20% 7612 | -8/Mines | AD-0RF came to Exiles' defense 7633 | -8/Mines | Destroyed by AD-0RF with AD-0RF's Magmablaster Last Messages --------------- 07496_ EXIT=FOUND 07498_ System corrupted: Heat flow error (+244). A strange signal echoes through the mines. LOCATION=UNKNOWN GOAL=ESCAPE 07580_ RCFMS:KIVD9P,AH,XU8FXLMM6%V7ZV2O99FLZ1 07587_ G-47 Trooper suffers critical hit (Meltdown). 07587_ Particle Gun melted. 07587_ Imp. Heat Sink melted. 07587_ Aluminum Leg melted. 07595_ Arm. Treads severed. 07599_ Melee Analysis Suite melted. 07599_ L-31 Rogue destroyed. 07602_ Power failure, Rnf. Fission Core shutdown. 07602_ G-47 Trooper destroyed. 07612_ AD-0RF: "I came as fast as I could... Wait, it was you!" 07617_ Dropped Adv. Beam Cannon. 07618_ Discarded Imp. Targeting Computer. 07619_ Power failure, Rnf. Fission Core shutdown. 07630_ Cooling System destroyed. Map ----- +----------------------------------------------------+ | ?????????????????????????????????????????????????? | | ?????????????????????????????????????????????????? | | ?????????????????????????????????????????????????? | | ?????????????????????????????????????????????????? | | ?????????????????????????????????????????????????? | | ?????????????????????????????????????????????????? | | ?????????????????????????????????????????????????? | | ?????????????????????????????????????????????????? | | ?????????????????????????????????????????????????? | | ?????????????????????????????????????????????????? | | ?????????????????????????????????????????????????? | | ?????????????????????????????????????????????????? | | ?????????????????????????????????????????????????? | | ?????????????????????????????????????????????????? | | ?????????????????????????????????????????????????? | | ?????????????????????????????????????????????????? | | ??????????????????#?????????????#####????????????? | | ??????????????????? ??????????## ##???????????? | | ????????????????????$#??????## ###?????????? | | ????????????????????? ????## ##????????? | | ??????????????????????? #### #????????? | | ???????????????????????? ####?????? | | ????????????????????????? ?????? | | ?????????????????????????##% ?????? | | ????????????????????????##t% #??????????? | | ????????????????????????#@!! ###????????????? | | ????????????????????????#]] gg ##??????????????? | | ????????????????????????# #g #???????????????? | | ????????????????????????## ## #???????????????? | | ?????????????????????????##i #?? #???????????????? | | ??????????????????????????# t#???#???????????????? | | ??????????????????????????## ???????????????????? | | ???????????????????????????# #??????????????????? | | ??????????????????????????? ??????????????????? | | ??????????????????????????? #?????????????????? | | ??????????????????????????? ##?????????????????? | | ??????????????????????????? ##??????????????????? | | ??????????????????????????? #????????????????????? | | ?????????????????????????? #?????????????????????? | | ??????????????????????????#??????????????????????? | | ?????????????????????????????????????????????????? | | ?????????????????????????????????????????????????? | | ?????????????????????????????????????????????????? | | ?????????????????????????????????????????????????? | | ?????????????????????????????????????????????????? | | ?????????????????????????????????????????????????? | | ?????????????????????????????????????????????????? | | ?????????????????????????????????????????????????? | | ?????????????????????????????????????????????????? | | ?????????????????????????????????????????????????? | +----------------------------------------------------+ Best States ------------- Heat Dissipation 60 Energy Generation 19 Energy Capacity 310 Matter Stores 300 Matter Capacity 300 Sight Range 16 Terrain Scan Density 10 Armor Coverage 150 Resistance: KI 20 Resistance: TH 20 Resistance: EX 20 Resistance: EM 20 Resistance: I 20 Resistance: S 20 Resistance: P 20 Evasion (%) 55 Targeting Accuracy 6 Recoil Reduction 3 Offensive Hacking 10 Authchip Count 1 Item Schematics ----------------- Enh. Autogun | -9/Materials | Scanalyzed Arm. Treads | -9/Materials | Scanalyzed Robot Schematics ------------------ None Fabricated ------------ Nothing Alien Tech Used ----------------- None Achievements -------------- None Challenges ------------ None Game ------ Seed AssaultAntigravGuard Manual? 0 Play Time 00:25:51 Cumulative 188.4 hours Start 2022.05.13 @ 17:34:44 End 2022.05.13 @ 18:00:07 Sessions 1 Manual Loads 0 Difficulty Adventurer Special Mode None Game No. 87 Rogue 0 Adventurer 87 Explorer 0 Win Type - Total 14 Types 8/1/1/1/1/0/0/1/1 Lore% 88 Gallery% 84 Achievement% 75 Wizard Run 0 Options --------- ASCII 0 Keyboard 1 Movement Numpad Keybinds 0 Fullscreen 2 Font 18/SmallcapsGlow Map View 76x50 Tactical HUD 1 Map Filters NONE Filters NONE Steam 1 RUN: 4d41478a-9296-416d-a02b-446cd4d62c36